fUSD/lending_fUSD_20260614
["ID","MTS","AMOUNT","RATE_DAILY","PERIOD"]
[425043616,1781445047000,-500.0,0.00027397,2]
[425043619,1781445047000,-510.31,0.00027397,2]
[425043622,1781445047000,-500.0,0.00027397,2]
[425043620,1781445047000,-525.57621866,0.00027397,2]
[425043621,1781445047000,-1273.73,0.00027397,2]
[425043623,1781445047000,-500.0,0.00027397,2]
[425043625,1781445047000,-500.0,0.00027397,2]
[425043627,1781445047000,-500.0,0.00027397,2]
[425043624,1781445047000,-500.0,0.00027397,2]
[425043628,1781445047000,-555.15,0.00027397,2]
[425043629,1781445047000,-500.0,0.00027397,2]
[425043626,1781445047000,-1200.6,0.00027397,2]
[425043630,1781445047000,-500.0,0.00027397,2]
[425043638,1781445047000,-1082.99,0.00027397,2]
[425043637,1781445047000,-871.52,0.00027397,2]
[425043631,1781445047000,-500.0,0.00027397,2]
[425043639,1781445047000,-500.0,0.00027397,2]
[425043632,1781445047000,-500.0,0.00027397,2]
[425043635,1781445047000,-500.0,0.00027397,2]
[425043636,1781445047000,-500.0,0.00027397,2]
[425043633,1781445047000,-500.0,0.00027397,2]
[425043634,1781445047000,-447.59221966,0.00027397,2]
[425043641,1781445047000,-500.0,0.00027397,2]
[425043640,1781445047000,-500.0,0.00027397,2]
[425043653,1781445047000,-500.0,0.00027397,2]
[425043678,1781445047000,-500.0,0.00027397,2]
[425043615,1781445047000,-500.0,0.00027397,2]
[425043675,1781445047000,-500.0,0.00027397,2]
[425043715,1781445047000,-500.0,0.00027397,2]
[425043717,1781445047000,-500.0,0.00027397,2]
[425043708,1781445047000,-500.0,0.00027397,2]
[425043709,1781445047000,-500.0,0.00027397,2]
[425043711,1781445047000,-500.0,0.00027397,2]
[425043710,1781445047000,-555.37,0.00027397,2]
[425043712,1781445047000,-500.0,0.00027397,2]
[425043714,1781445047000,-500.0,0.00027397,2]
[425043713,1781445047000,-500.0,0.00027397,2]
[425043718,1781445047000,-500.0,0.00027397,2]
[425043719,1781445047000,-500.0,0.00027397,2]
[425043728,1781445047000,-568.28,0.00027397,2]
[425043720,1781445047000,-500.0,0.00027397,2]
[425043724,1781445047000,-529.04,0.00027397,2]
[425043721,1781445047000,-500.0,0.00027397,2]
[425043722,1781445047000,-500.0,0.00027397,2]
[425043730,1781445047000,-500.0,0.00027397,2]
[425043727,1781445047000,-542.07,0.00027397,2]
[425043725,1781445047000,-500.0,0.00027397,2]
[425043729,1781445047000,-186.21885896,0.00027397,2]
[425043723,1781445047000,-500.0,0.00027397,2]
[425043726,1781445047000,-1270.33,0.00027397,2]
[425043732,1781445047000,-543.33,0.00027397,2]
[425043735,1781445047000,-630.64,0.00027397,2]
[425043733,1781445047000,-1366.05,0.00027397,2]
[425043677,1781445047000,-894.13,0.00027397,2]
[425043731,1781445047000,-500.0,0.00027397,2]
[425043706,1781445047000,-500.0,0.00027397,2]
[425043716,1781445047000,-500.0,0.00027397,2]
[425043734,1781445047000,-500.0,0.00027397,2]
[425043701,1781445047000,-602.31,0.00027397,2]
[425043707,1781445047000,-500.0,0.00027397,2]
[425043679,1781445047000,-500.0,0.00027397,2]
[425043681,1781445047000,-500.0,0.00027397,2]
[425043680,1781445047000,-962.3,0.00027397,2]
[425043682,1781445047000,-500.0,0.00027397,2]
[425043684,1781445047000,-500.0,0.00027397,2]
[425043690,1781445047000,-500.0,0.00027397,2]
[425043694,1781445047000,-1267.69,0.00027397,2]
[425043692,1781445047000,-500.0,0.00027397,2]
[425043683,1781445047000,-500.0,0.00027397,2]
[425043693,1781445047000,-218.16346554,0.00027397,2]
[425043686,1781445047000,-662.46,0.00027397,2]
[425043685,1781445047000,-500.0,0.00027397,2]
[425043674,1781445047000,-500.0,0.00027397,2]
[425043687,1781445047000,-500.0,0.00027397,2]
[425043688,1781445047000,-1191.22,0.00027397,2]
[425043703,1781445047000,-500.0,0.00027397,2]
[425043704,1781445047000,-1076.81,0.00027397,2]
[425043705,1781445047000,-500.0,0.00027397,2]
[425043698,1781445047000,-500.0,0.00027397,2]
[425043700,1781445047000,-1679.76,0.00027397,2]
[425043702,1781445047000,-500.0,0.00027397,2]
[425043695,1781445047000,-500.0,0.00027397,2]
[425043697,1781445047000,-500.0,0.00027397,2]
[425043696,1781445047000,-500.0,0.00027397,2]
[425043691,1781445047000,-500.0,0.00027397,2]
[425043689,1781445047000,-434.80829545,0.00027397,2]
[425043699,1781445047000,-1030.34,0.00027397,2]
[425043769,1781445048000,-904.54,0.00027397,2]
[425043776,1781445048000,-500.0,0.00027397,2]
[425043766,1781445048000,-1995.27,0.00027397,2]
[425043772,1781445048000,-500.0,0.00027397,2]
[425043773,1781445048000,-948.14,0.00027397,2]
[425043774,1781445048000,-500.0,0.00027397,2]
[425043767,1781445048000,-500.0,0.00027397,2]
[425043768,1781445048000,-1244.87,0.00027397,2]
[425043771,1781445048000,-755.0,0.00027397,2]
[425043775,1781445048000,-500.0,0.00027397,2]
[425043770,1781445048000,-752.03,0.00027397,2]
[425043781,1781445048000,-500.0,0.00027397,2]
[425043786,1781445048000,-824.44,0.00027397,2]
[425043779,1781445048000,-500.0,0.00027397,2]
[425043777,1781445048000,-487.79286724,0.00027397,2]
[425043787,1781445048000,-500.0,0.00027397,2]
[425043780,1781445048000,-500.0,0.00027397,2]
[425043784,1781445048000,-500.0,0.00027397,2]
[425043783,1781445048000,-500.0,0.00027397,2]
[425043782,1781445048000,-584.25,0.00027397,2]
[425043785,1781445048000,-500.0,0.00027397,2]
[425043790,1781445048000,-500.0,0.00027397,2]
[425043788,1781445048000,-500.0,0.00027397,2]
[425043762,1781445048000,-213.98698081,0.00027397,2]
[425043778,1781445048000,-2255.28,0.00027397,2]
[425043761,1781445048000,-500.0,0.00027397,2]
[425043747,1781445048000,-500.0,0.00027397,2]
[425043759,1781445048000,-500.0,0.00027397,2]
[425043742,1781445048000,-500.0,0.00027397,2]
[425043736,1781445048000,-500.0,0.00027397,2]
[425043741,1781445048000,-500.0,0.00027397,2]
[425043738,1781445048000,-500.0,0.00027397,2]
[425043737,1781445048000,-500.0,0.00027397,2]
[425043740,1781445048000,-500.0,0.00027397,2]
[425043739,1781445048000,-500.0,0.00027397,2]
[425043744,1781445048000,-500.0,0.00027397,2]
[425043743,1781445048000,-500.0,0.00027397,2]
[425043745,1781445048000,-500.0,0.00027397,2]
[425043751,1781445048000,-1822.83,0.00027397,2]
[425043746,1781445048000,-985.4,0.00027397,2]
[425043753,1781445048000,-448.08185347,0.00027397,2]
[425043752,1781445048000,-500.0,0.00027397,2]
[425043749,1781445048000,-500.0,0.00027397,2]
[425043748,1781445048000,-1066.98,0.00027397,2]
[425043750,1781445048000,-500.0,0.00027397,2]
[425043763,1781445048000,-500.0,0.00027397,2]
[425043754,1781445048000,-645.79,0.00027397,2]
[425043764,1781445048000,-500.0,0.00027397,2]
[425043765,1781445048000,-500.0,0.00027397,2]
[425043755,1781445048000,-779.55,0.00027397,2]
[425043756,1781445048000,-500.0,0.00027397,2]
[425043757,1781445048000,-531.87,0.00027397,2]
[425043758,1781445048000,-711.45,0.00027397,2]
[425043760,1781445048000,-1259.9,0.00027397,2]
[425043791,1781445048000,-500.0,0.00027397,2]
[425043789,1781445048000,-711.7,0.00027397,2]
[425043799,1781445048000,-500.0,0.00027397,2]
[425043821,1781445048000,-703.83,0.00027397,2]
[425043825,1781445048000,-500.0,0.00027397,2]
[425043824,1781445048000,-552.55,0.00027397,2]
[425043827,1781445048000,-500.0,0.00027397,2]
[425043828,1781445048000,-500.0,0.00027397,2]
[425043829,1781445048000,-500.0,0.00027397,2]
[425043826,1781445048000,-500.0,0.00027397,2]
[425043830,1781445048000,-500.0,0.00027397,2]
[425043834,1781445048000,-609.75,0.00027397,2]
[425043831,1781445048000,-1089.31,0.00027397,2]
[425043832,1781445048000,-500.0,0.00027397,2]
[425043835,1781445048000,-818.38,0.00027397,2]
[425043837,1781445048000,-500.0,0.00027397,2]
[425043841,1781445048000,-500.0,0.00027397,2]
[425043836,1781445048000,-506.0,0.00027397,2]
[425043838,1781445048000,-500.0,0.00027397,2]
[425043843,1781445048000,-500.0,0.00027397,2]
[425043839,1781445048000,-500.0,0.00027397,2]
[425043842,1781445048000,-500.0,0.00027397,2]
[425043840,1781445048000,-576.35916301,0.00027397,2]
[425043845,1781445048000,-188.61,0.00027397,2]
[425043844,1781445048000,-645.27628657,0.00027397,2]
[425043847,1781445048000,-500.0,0.00027397,2]
[425043846,1781445048000,-500.0,0.00027397,2]
[425043795,1781445048000,-745.44,0.00027397,2]
[425043815,1781445048000,-500.0,0.00027397,2]
[425043820,1781445048000,-500.0,0.00027397,2]
[425043833,1781445048000,-500.0,0.00027397,2]
[425043816,1781445048000,-919.08,0.00027397,2]
[425043822,1781445048000,-577.92501557,0.00027397,2]
[425043792,1781445048000,-500.0,0.00027397,2]
[425043793,1781445048000,-500.0,0.00027397,2]
[425043797,1781445048000,-500.0,0.00027397,2]
[425043798,1781445048000,-1287.69,0.00027397,2]
[425043796,1781445048000,-556.38,0.00027397,2]
[425043801,1781445048000,-500.0,0.00027397,2]
[425043811,1781445048000,-638.46,0.00027397,2]
[425043810,1781445048000,-500.0,0.00027397,2]
[425043800,1781445048000,-500.0,0.00027397,2]
[425043809,1781445048000,-500.0,0.00027397,2]
[425043806,1781445048000,-500.0,0.00027397,2]
[425043802,1781445048000,-500.0,0.00027397,2]
[425043794,1781445048000,-500.0,0.00027397,2]
[425043814,1781445048000,-500.0,0.00027397,2]
[425043804,1781445048000,-500.0,0.00027397,2]
[425043803,1781445048000,-500.0,0.00027397,2]
[425043808,1781445048000,-500.0,0.00027397,2]
[425043807,1781445048000,-500.0,0.00027397,2]
[425043812,1781445048000,-500.0,0.00027397,2]
[425043813,1781445048000,-500.0,0.00027397,2]
[425043819,1781445048000,-500.0,0.00027397,2]
[425043805,1781445048000,-500.0,0.00027397,2]
[425043817,1781445048000,-500.0,0.00027397,2]
[425043823,1781445048000,-1309.25,0.00027397,2]
[425043818,1781445048000,-500.0,0.00027397,2]
[425043882,1781445049000,-500.0,0.00027397,2]
[425043876,1781445049000,-500.0,0.00027397,2]
[425043883,1781445049000,-500.0,0.00027397,2]
[425043889,1781445049000,-527.6,0.00027397,2]
[425043881,1781445049000,-973.34,0.00027397,2]
[425043873,1781445049000,-500.0,0.00027397,2]
[425043891,1781445049000,-500.0,0.00027397,2]
[425043880,1781445049000,-500.0,0.00027397,2]
[425043890,1781445049000,-500.0,0.00027397,2]
[425043877,1781445049000,-2079.48,0.00027397,2]
[425043884,1781445049000,-500.0,0.00027397,2]
[425043879,1781445049000,-500.0,0.00027397,2]
[425043885,1781445049000,-500.0,0.00027397,2]
[425043900,1781445049000,-500.0,0.00027397,2]
[425043888,1781445049000,-727.73,0.00027397,2]
[425043887,1781445049000,-500.0,0.00027397,2]
[425043892,1781445049000,-500.0,0.00027397,2]
[425043893,1781445049000,-500.0,0.00027397,2]
[425043899,1781445049000,-500.0,0.00027397,2]
[425043894,1781445049000,-499.999999,0.00027397,2]
[425043896,1781445049000,-742.19,0.00027397,2]
[425043902,1781445049000,-500.0,0.00027397,2]
[425043903,1781445049000,-744.48,0.00027397,2]
[425043898,1781445049000,-500.0,0.00027397,2]
[425043901,1781445049000,-500.0,0.00027397,2]
[425043886,1781445049000,-500.0,0.00027397,2]
[425043875,1781445049000,-1872.4,0.00027397,2]
[425043895,1781445049000,-500.0,0.00027397,2]
[425043878,1781445049000,-500.0,0.00027397,2]
[425043851,1781445049000,-500.0,0.00027397,2]
[425043848,1781445049000,-500.0,0.00027397,2]
[425043850,1781445049000,-500.0,0.00027397,2]
[425043852,1781445049000,-500.0,0.00027397,2]
[425043854,1781445049000,-502.46,0.00027397,2]
[425043849,1781445049000,-500.0,0.00027397,2]
[425043853,1781445049000,-646.13,0.00027397,2]
[425043857,1781445049000,-690.09,0.00027397,2]
[425043866,1781445049000,-500.0,0.00027397,2]
[425043856,1781445049000,-516.28,0.00027397,2]
[425043858,1781445049000,-500.0,0.00027397,2]
[425043863,1781445049000,-504.55,0.00027397,2]
[425043860,1781445049000,-500.0,0.00027397,2]
[425043855,1781445049000,-500.0,0.00027397,2]
[425043859,1781445049000,-728.98,0.00027397,2]
[425043862,1781445049000,-500.0,0.00027397,2]
[425043865,1781445049000,-1421.29,0.00027397,2]
[425043861,1781445049000,-500.0,0.00027397,2]
[425043864,1781445049000,-500.0,0.00027397,2]
[425043867,1781445049000,-952.29,0.00027397,2]
[425043868,1781445049000,-502.09239286,0.00027397,2]
[425043870,1781445049000,-887.68,0.00027397,2]
[425043869,1781445049000,-557.69,0.00027397,2]
[425043871,1781445049000,-500.0,0.00027397,2]
[425043872,1781445049000,-581.51,0.00027397,2]
[425043874,1781445049000,-500.0,0.00027397,2]
[425043897,1781445049000,-650.71,0.00027397,2]
[425043909,1781445049000,-1489.87,0.00027397,2]
[425043916,1781445049000,-500.0,0.00027397,2]
[425043937,1781445049000,-2048.23,0.00027397,2]
[425043935,1781445049000,-1115.2,0.00027397,2]
[425043938,1781445049000,-191.1563494,0.00027397,2]
[425043934,1781445049000,-2048.23,0.00027397,2]
[425043936,1781445049000,-2048.23,0.00027397,2]
[425043940,1781445049000,-2048.23,0.00027397,2]
[425043944,1781445049000,-500.0,0.00027397,2]
[425043945,1781445049000,-431.50262623,0.00027397,2]
[425043943,1781445049000,-482.75279655,0.00027397,2]
[425043941,1781445049000,-2048.23,0.00027397,2]
[425043942,1781445049000,-1416.51,0.00027397,2]
[425043949,1781445049000,-500.0,0.00027397,2]
[425043951,1781445049000,-581.87925369,0.00027397,2]
[425043946,1781445049000,-1809.35,0.00027397,2]
[425043948,1781445049000,-500.0,0.00027397,2]
[425043950,1781445049000,-500.0,0.00027397,2]
[425043947,1781445049000,-500.0,0.00027397,2]
[425043953,1781445049000,-1069.43,0.00027397,2]
[425043954,1781445049000,-727.36,0.00027397,2]
[425043956,1781445049000,-1251.25,0.00027397,2]
[425043955,1781445049000,-535.28,0.00027397,2]
[425043952,1781445049000,-500.0,0.00027397,2]
[425043957,1781445049000,-873.85,0.00027397,2]
[425043959,1781445049000,-1087.85,0.00027397,2]
[425043905,1781445049000,-980.65,0.00027397,2]
[425043933,1781445049000,-191.1563494,0.00027397,2]
[425043932,1781445049000,-2048.23,0.00027397,2]
[425043958,1781445049000,-500.0,0.00027397,2]
[425043928,1781445049000,-1215.0,0.00027397,2]
[425043930,1781445049000,-682.95,0.00027397,2]
[425043915,1781445049000,-500.0,0.00027397,2]
[425043908,1781445049000,-1000.0,0.00027397,2]
[425043914,1781445049000,-500.0,0.00027397,2]
[425043911,1781445049000,-986.77,0.00027397,2]
[425043960,1781445049000,-1637.29,0.00027397,2]
[425043913,1781445049000,-590.03,0.00027397,2]
[425043907,1781445049000,-1387.16,0.00027397,2]
[425043904,1781445049000,-1060.67,0.00027397,2]
[425043910,1781445049000,-500.0,0.00027397,2]
[425043912,1781445049000,-500.0,0.00027397,2]
[425043917,1781445049000,-500.0,0.00027397,2]
[425043906,1781445049000,-500.0,0.00027397,2]
[425043919,1781445049000,-833.3,0.00027397,2]
[425043939,1781445049000,-466.08780266,0.00027397,2]
[425043931,1781445049000,-555.38,0.00027397,2]
[425043929,1781445049000,-941.06,0.00027397,2]
[425043920,1781445049000,-500.0,0.00027397,2]
[425043918,1781445049000,-500.0,0.00027397,2]
[425043924,1781445049000,-500.0,0.00027397,2]
[425043926,1781445049000,-500.0,0.00027397,2]
[425043922,1781445049000,-500.0,0.00027397,2]
[425043921,1781445049000,-500.0,0.00027397,2]
[425043923,1781445049000,-500.0,0.00027397,2]
[425043927,1781445049000,-500.0,0.00027397,2]
[425043925,1781445049000,-591.86928882,0.00027397,2]
[425043996,1781445050000,-642.8,0.00027397,2]
[425043995,1781445050000,-500.0,0.00027397,2]
[425043997,1781445050000,-842.97,0.00027397,2]
[425043994,1781445050000,-500.0,0.00027397,2]
[425043985,1781445050000,-500.0,0.00027397,2]
[425043991,1781445050000,-500.0,0.00027397,2]
[425043990,1781445050000,-500.0,0.00027397,2]
[425043989,1781445050000,-512.7,0.00027397,2]
[425043982,1781445050000,-500.0,0.00027397,2]
[425043992,1781445050000,-500.0,0.00027397,2]
[425044003,1781445050000,-500.0,0.00027397,2]
[425043998,1781445050000,-500.0,0.00027397,2]
[425044004,1781445050000,-1000.0,0.00027397,2]
[425043999,1781445050000,-500.0,0.00027397,2]
[425044002,1781445050000,-500.0,0.00027397,2]
[425044000,1781445050000,-500.0,0.00027397,2]
[425044001,1781445050000,-500.0,0.00027397,2]
[425044006,1781445050000,-1695.28,0.00027397,2]
[425044007,1781445050000,-500.0,0.00027397,2]
[425044008,1781445050000,-650.28,0.00027397,2]
[425044009,1781445050000,-500.0,0.00027397,2]
[425043986,1781445050000,-500.0,0.00027397,2]
[425044014,1781445050000,-1346.5,0.00027397,2]
[425044005,1781445050000,-737.69,0.00027397,2]
[425043988,1781445050000,-500.0,0.00027397,2]
[425043976,1781445050000,-999.22,0.00027397,2]
[425043987,1781445050000,-500.0,0.00027397,2]
[425044010,1781445050000,-500.0,0.00027397,2]
[425043969,1781445050000,-500.0,0.00027397,2]
[425043968,1781445050000,-609.56,0.00027397,2]
[425043961,1781445050000,-469.35360519,0.00027397,2]
[425043962,1781445050000,-593.83,0.00027397,2]
[425043963,1781445050000,-1154.61,0.00027397,2]
[425043965,1781445050000,-500.0,0.00027397,2]
[425043967,1781445050000,-500.0,0.00027397,2]
[425043964,1781445050000,-386.03170321,0.00027397,2]
[425043966,1781445050000,-500.0,0.00027397,2]
[425043970,1781445050000,-761.39,0.00027397,2]
[425043971,1781445050000,-858.53,0.00027397,2]
[425043981,1781445050000,-500.0,0.00027397,2]
[425043979,1781445050000,-873.58,0.00027397,2]
[425043974,1781445050000,-732.72,0.00027397,2]
[425043973,1781445050000,-500.0,0.00027397,2]
[425043977,1781445050000,-500.0,0.00027397,2]
[425043980,1781445050000,-500.0,0.00027397,2]
[425043972,1781445050000,-881.93,0.00027397,2]
[425043978,1781445050000,-500.0,0.00027397,2]
[425043975,1781445050000,-1017.45,0.00027397,2]
[425043983,1781445050000,-601.93,0.00027397,2]
[425043993,1781445050000,-500.0,0.00027397,2]
[425043984,1781445050000,-500.0,0.00027397,2]
[425044013,1781445050000,-500.0,0.00027397,2]
[425044012,1781445050000,-543.16,0.00027397,2]
[425044016,1781445050000,-500.0,0.00027397,2]
[425044043,1781445050000,-1335.94,0.00027397,2]
[425044046,1781445050000,-1602.34,0.00027397,2]
[425044045,1781445050000,-500.0,0.00027397,2]
[425044050,1781445050000,-1227.19,0.00027397,2]
[425044049,1781445050000,-500.0,0.00027397,2]
[425044048,1781445050000,-1553.29,0.00027397,2]
[425044052,1781445050000,-1516.59,0.00027397,2]
[425044042,1781445050000,-3274.34,0.00027397,2]
[425044047,1781445050000,-500.0,0.00027397,2]
[425044051,1781445050000,-500.0,0.00027397,2]
[425044054,1781445050000,-563.78,0.00027397,2]
[425044053,1781445050000,-500.0,0.00027397,2]
[425044056,1781445050000,-568.86,0.00027397,2]
[425044055,1781445050000,-1729.69,0.00027397,2]
[425044057,1781445050000,-500.0,0.00027397,2]
[425044058,1781445050000,-500.0,0.00027397,2]
[425044060,1781445050000,-500.0,0.00027397,2]
[425044059,1781445050000,-500.0,0.00027397,2]
[425044063,1781445050000,-500.0,0.00027397,2]
[425044061,1781445050000,-500.0,0.00027397,2]
[425044062,1781445050000,-1772.51,0.00027397,2]
[425044065,1781445050000,-500.0,0.00027397,2]
[425044066,1781445050000,-506.68,0.00027397,2]
[425044044,1781445050000,-500.0,0.00027397,2]
[425044041,1781445050000,-1193.58,0.00027397,2]
[425044064,1781445050000,-274.393874,0.00027397,2]
[425044036,1781445050000,-533.07,0.00027397,2]
[425044038,1781445050000,-500.0,0.00027397,2]
[425044011,1781445050000,-500.0,0.00027397,2]
[425044018,1781445050000,-1418.93,0.00027397,2]
[425044017,1781445050000,-500.0,0.00027397,2]
[425044028,1781445050000,-351.93671142,0.00027397,2]
[425044026,1781445050000,-1592.8,0.00027397,2]
[425044027,1781445050000,-561.57435849,0.00027397,2]
[425044024,1781445050000,-500.0,0.00027397,2]
[425044021,1781445050000,-845.41,0.00027397,2]
[425044025,1781445050000,-589.4,0.00027397,2]
[425044019,1781445050000,-500.0,0.00027397,2]
[425044020,1781445050000,-965.48,0.00027397,2]
[425044015,1781445050000,-500.0,0.00027397,2]
[425044032,1781445050000,-878.83,0.00027397,2]
[425044023,1781445050000,-500.0,0.00027397,2]
[425044039,1781445050000,-500.0,0.00027397,2]
[425044034,1781445050000,-210.34314678,0.00027397,2]
[425044035,1781445050000,-741.63,0.00027397,2]
[425044031,1781445050000,-807.12,0.00027397,2]
[425044037,1781445050000,-1641.61,0.00027397,2]
[425044029,1781445050000,-500.0,0.00027397,2]
[425044030,1781445050000,-500.0,0.00027397,2]
[425044040,1781445050000,-500.0,0.00027397,2]
[425044022,1781445050000,-996.65,0.00027397,2]
[425044033,1781445050000,-500.0,0.00027397,2]
[425044108,1781445051000,-523.82,0.00027397,2]
[425044109,1781445051000,-500.0,0.00027397,2]
[425044106,1781445051000,-500.0,0.00027397,2]
[425044102,1781445051000,-500.0,0.00027397,2]
[425044100,1781445051000,-637.39,0.00027397,2]
[425044096,1781445051000,-747.52,0.00027397,2]
[425044097,1781445051000,-500.0,0.00027397,2]
[425044099,1781445051000,-500.0,0.00027397,2]
[425044098,1781445051000,-500.0,0.00027397,2]
[425044110,1781445051000,-1459.31,0.00027397,2]
[425044093,1781445051000,-500.0,0.00027397,2]
[425044101,1781445051000,-500.0,0.00027397,2]
[425044105,1781445051000,-500.0,0.00027397,2]
[425044112,1781445051000,-773.61,0.00027397,2]
[425044103,1781445051000,-500.0,0.00027397,2]
[425044107,1781445051000,-500.0,0.00027397,2]
[425044111,1781445051000,-1275.5,0.00027397,2]
[425044113,1781445051000,-500.0,0.00027397,2]
[425044121,1781445051000,-925.43,0.00027397,2]
[425044116,1781445051000,-576.76,0.00027397,2]
[425044115,1781445051000,-835.55,0.00027397,2]
[425044119,1781445051000,-886.28,0.00027397,2]
[425044117,1781445051000,-500.0,0.00027397,2]
[425044118,1781445051000,-767.16,0.00027397,2]
[425044114,1781445051000,-834.52,0.00027397,2]
[425044104,1781445051000,-500.0,0.00027397,2]
[425044095,1781445051000,-595.08,0.00027397,2]
[425044069,1781445051000,-500.0,0.00027397,2]
[425044089,1781445051000,-500.0,0.00027397,2]
[425044067,1781445051000,-500.0,0.00027397,2]
[425044120,1781445051000,-728.36,0.00027397,2]
[425044074,1781445051000,-566.21,0.00027397,2]
[425044068,1781445051000,-685.98,0.00027397,2]
[425044073,1781445051000,-588.7,0.00027397,2]
[425044071,1781445051000,-1095.51,0.00027397,2]
[425044070,1781445051000,-500.0,0.00027397,2]
[425044072,1781445051000,-577.5,0.00027397,2]
[425044075,1781445051000,-500.0,0.00027397,2]
[425044076,1781445051000,-966.65,0.00027397,2]
[425044078,1781445051000,-618.14,0.00027397,2]
[425044077,1781445051000,-1525.54,0.00027397,2]
[425044085,1781445051000,-500.0,0.00027397,2]
[425044083,1781445051000,-500.0,0.00027397,2]
[425044082,1781445051000,-500.0,0.00027397,2]
[425044087,1781445051000,-1606.46,0.00027397,2]
[425044080,1781445051000,-614.47,0.00027397,2]
[425044084,1781445051000,-1341.2,0.00027397,2]
[425044079,1781445051000,-500.0,0.00027397,2]
[425044081,1781445051000,-500.0,0.00027397,2]
[425044086,1781445051000,-1099.17,0.00027397,2]
[425044088,1781445051000,-801.14,0.00027397,2]
[425044090,1781445051000,-2335.6,0.00027397,2]
[425044092,1781445051000,-500.0,0.00027397,2]
[425044091,1781445051000,-500.0,0.00027397,2]
[425044094,1781445051000,-500.0,0.00027397,2]
[425044130,1781445051000,-1207.99,0.00027397,2]
[425044177,1781445051000,-500.0,0.00027397,2]
[425044132,1781445051000,-500.0,0.00027397,2]
[425044156,1781445051000,-500.0,0.00027397,2]
[425044152,1781445051000,-500.0,0.00027397,2]
[425044151,1781445051000,-500.0,0.00027397,2]
[425044154,1781445051000,-500.0,0.00027397,2]
[425044159,1781445051000,-553.9,0.00027397,2]
[425044165,1781445051000,-500.0,0.00027397,2]
[425044168,1781445051000,-500.0,0.00027397,2]
[425044161,1781445051000,-981.03,0.00027397,2]
[425044162,1781445051000,-500.0,0.00027397,2]
[425044164,1781445051000,-500.0,0.00027397,2]
[425044166,1781445051000,-500.0,0.00027397,2]
[425044163,1781445051000,-500.0,0.00027397,2]
[425044160,1781445051000,-536.91,0.00027397,2]
[425044167,1781445051000,-500.0,0.00027397,2]
[425044169,1781445051000,-500.0,0.00027397,2]
[425044172,1781445051000,-500.0,0.00027397,2]
[425044175,1781445051000,-500.0,0.00027397,2]
[425044174,1781445051000,-633.57,0.00027397,2]
[425044171,1781445051000,-500.0,0.00027397,2]
[425044179,1781445051000,-500.0,0.00027397,2]
[425044170,1781445051000,-585.85,0.00027397,2]
[425044129,1781445051000,-500.0,0.00027397,2]
[425044176,1781445051000,-1090.97,0.00027397,2]
[425044180,1781445051000,-500.0,0.00027397,2]